fUST/lending_fUST_20260107
["ID","MTS","AMOUNT","RATE_DAILY","PERIOD"]
[400645582,1767762643198,-1041.66666667,0.00027,7]
[400645583,1767762643207,-500.0,0.00027041,7]
[400645584,1767762643217,-301.0,0.0002711,2]
[400645585,1767762643226,-8045.68317556,0.00027259,2]
[400645586,1767762643235,-500.0,0.00027292,7]
[400645587,1767762643245,-500.0,0.00027304,7]
[400645588,1767762643254,-500.0,0.00027316,7]
[400645589,1767762643263,-365.0,0.00027356,2]
[400645590,1767762643272,-2200.0,0.00027359,7]
[400645591,1767762643282,-390.92977,0.00027359,7]
[400645592,1767762643292,-390.92977,0.00027359,7]
[400645593,1767762643301,-390.92977,0.00027359,7]
[400645594,1767762643311,-390.92977,0.00027359,7]
[400645595,1767762643320,-151.0,0.00027359,7]
[400645596,1767762643330,-151.0,0.00027359,7]
[400645597,1767762643340,-440.287203,0.00027359,7]
[400645598,1767762643349,-440.287203,0.00027359,7]
[400645599,1767762643359,-440.287203,0.00027359,7]
[400645600,1767762643368,-440.287203,0.00027359,7]
[400645601,1767762643377,-223.83334036,0.00027397,2]
[400645602,1767762643387,-1346.23,0.00027397,2]
[400645603,1767762643396,-650.0,0.00027397,5]
[400645604,1767762643406,-154.121516,0.00027397,7]
[400645605,1767762643415,-500.0,0.00027397,5]
[400645606,1767762643424,-514.81933417,0.00027397,5]
[400645607,1767762643433,-432.2,0.00027397,8]
[400645608,1767762643443,-151.0,0.00027435,7]
[400645609,1767762643453,-151.0,0.00027435,2]
[400645610,1767762643462,-327.441468,0.00027435,7]
[400645611,1767762643472,-327.441468,0.00027435,7]
[400645612,1767762643481,-2000.0,0.00027435,7]
[400645613,1767762643490,-1000.0,0.0002749,30]
[400645614,1767762643499,-1000.0,0.0002749,30]
[400645615,1767762643508,-579.0,0.0002749,30]
[400645616,1767762643518,-45934.68102333,0.000275,2]
[400645617,1767762643528,-1908.17,0.000275,7]
[400645618,1767762643538,-179.448151,0.000275,7]
[400645619,1767762643548,-184.812283,0.000275,7]
[400645620,1767762643557,-184.812283,0.000275,7]
[400645621,1767762643566,-184.812283,0.000275,7]
[400645622,1767762643575,-184.812283,0.000275,7]
[400645623,1767762643585,-151.0,0.000275,7]
[400645624,1767762643594,-199.964076,0.000275,7]
[400645626,1767762643604,-199.964076,0.000275,7]
[400645628,1767762643613,-199.964076,0.000275,7]
[400645629,1767762643622,-199.964076,0.000275,7]
[400645630,1767762643631,-151.0,0.000275,7]
[400645631,1767762643641,-151.0,0.000275,7]
[400645632,1767762643650,-151.0,0.000275,7]
[400645633,1767762643661,-151.0,0.000275,7]
[400645634,1767762643670,-177.524366,0.000275,7]
[400645635,1767762643679,-205.742012,0.000275,7]
[400645636,1767762643689,-205.742012,0.000275,7]
[400645637,1767762643698,-151.0,0.000275,7]
[400645638,1767762643707,-205.742012,0.000275,7]
[400645639,1767762643716,-205.742012,0.000275,7]
[400645640,1767762643726,-1664.343388,0.000275,7]
[400645641,1767762643735,-1664.343388,0.000275,7]
[400645642,1767762643744,-1664.343388,0.000275,7]
[400645643,1767762643753,-186.329815,0.000275,7]
[400645644,1767762643762,-186.329815,0.000275,7]
[400645645,1767762643771,-186.329815,0.000275,7]
[400645646,1767762643780,-186.329815,0.000275,7]
[400645647,1767762643791,-215.570059,0.000275,7]
[400645648,1767762643801,-206.665209,0.000275,7]
[400645649,1767762643810,-215.570059,0.000275,7]
[400645650,1767762643820,-206.665209,0.000275,7]
[400645651,1767762643830,-215.570059,0.000275,7]
[400645652,1767762643839,-206.665209,0.000275,7]
[400645653,1767762643849,-215.570059,0.000275,7]
[400645654,1767762643858,-206.665209,0.000275,7]
[400645655,1767762643868,-187.815389,0.000275,7]
[400645656,1767762643878,-187.815389,0.000275,7]
[400645657,1767762643887,-187.815389,0.000275,7]
[400645658,1767762643896,-187.815389,0.000275,7]
[400645659,1767762643906,-151.0,0.000275,7]
[400645660,1767762643915,-151.0,0.000275,7]
[400645661,1767762643924,-1016.281206,0.000275,7]
[400645662,1767762643933,-1016.281206,0.000275,7]
[400645663,1767762643942,-1016.281206,0.000275,7]
[400645664,1767762643951,-1016.281206,0.000275,7]
[400645665,1767762643961,-226.840481,0.000275,7]
[400645666,1767762643971,-237.990209,0.000275,7]
[400645667,1767762643980,-151.0,0.000275,7]
[400645668,1767762643989,-151.0,0.000275,7]
[400645669,1767762643999,-609.666208,0.000275,7]
[400645670,1767762644008,-609.666208,0.000275,7]
[400645671,1767762644017,-609.666208,0.000275,7]
[400645672,1767762644027,-210.572265,0.000275,7]
[400645673,1767762644036,-609.666208,0.000275,7]
[400645674,1767762644045,-210.572265,0.000275,7]
[400645675,1767762644054,-210.572265,0.000275,7]
[400645676,1767762644063,-210.572265,0.000275,7]
[400645677,1767762644072,-209.524359,0.00027533,7]
[400645678,1767762644081,-209.524359,0.00027533,7]
[400645679,1767762644091,-209.524359,0.00027533,7]
[400645680,1767762644099,-209.524359,0.00027533,7]
[400645681,1767762644108,-241.004676,0.00027533,7]
[400645682,1767762644117,-241.004676,0.00027533,7]
[400645683,1767762644126,-241.004676,0.00027533,7]
[400645684,1767762644134,-241.004676,0.00027533,7]
[400645685,1767762644143,-530.111159,0.00027533,7]
[400645686,1767762644152,-530.111159,0.00027533,7]
[400645687,1767762644161,-634.815792,0.00027533,7]
[400645688,1767762644170,-634.815792,0.00027533,7]
[400645689,1767762644179,-530.111159,0.00027533,7]
[400645690,1767762644189,-530.111159,0.00027533,7]
[400645691,1767762644198,-634.815792,0.00027533,7]
[400645692,1767762644208,-634.815792,0.00027533,7]
[400645693,1767762644218,-151.0,0.00027533,7]
[400645694,1767762644227,-151.0,0.00027533,7]
[400645695,1767762644237,-218.702509,0.00027533,7]
[400645696,1767762644246,-218.702509,0.00027533,7]
[400645697,1767762644255,-218.702509,0.00027533,7]
[400645698,1767762644264,-218.702509,0.00027533,7]
[400645699,1767762644274,-151.0,0.00027533,2]
[400645700,1767762644284,-533.88981491,0.00027533,2]
[400645701,1767762644293,-31110.0,0.00027533,2]
[400645702,1767762644303,-2579.17784983,0.00027533,2]
[400645703,1767762644312,-435.0,0.00027585,2]
[400645704,1767762644321,-283.8,0.00027608,2]
[400645705,1767762644331,-2200.0,0.00027609,7]
[400645706,1767762644340,-300.0,0.00027671,2]
[400645707,1767762644350,-300.0,0.00027671,2]
[400645708,1767762644359,-180.0,0.00027699,25]
[400645709,1767762644368,-300.0,0.00027699,2]
[400645710,1767762644379,-300.0,0.00027699,2]
[400645711,1767762644388,-300.0,0.00027699,2]
[400645712,1767762644397,-300.0,0.00027699,2]
[400645713,1767762644407,-15924.46772426,0.000277,3]
[400645714,1767762644416,-300.0,0.00027726,2]
[400645715,1767762644426,-300.0,0.00027726,2]
[400645716,1767762644436,-1000.0,0.00027777,5]
[400645717,1767762644445,-4156.30614466,0.00027811,2]
[400645718,1767762644455,-346.1,0.00027832,2]
[400645719,1767762644464,-2200.0,0.00027876,7]
[400645720,1767762644473,-2200.0,0.00027927,7]
[400645721,1767762644482,-750.0,0.00027945,5]
[400645722,1767762644492,-1000.0,0.00027945,5]
[400645723,1767762644501,-250.0,0.00027945,5]
[400645724,1767762644510,-250.0,0.00027945,5]
[400645725,1767762644519,-15317.68742945,0.00028,2]
[400645726,1767762644529,-519.98551023,0.00028,2]
[400645727,1767762644538,-1019.0,0.00028,2]
[400645728,1767762644547,-1041.66666667,0.00028,3]
[400645729,1767762644556,-5000.0,0.00028038,2]
[400645731,1767762644566,-2200.0,0.00028051,7]
[400645732,1767762644576,-152.42996206,0.00028081,2]
[400645733,1767762644586,-553.64373807,0.00028081,2]
[400645734,1767762644595,-32261.07,0.00028081,2]
[400645735,1767762644604,-2674.60743027,0.00028081,2]
[400645736,1767762644614,-587.58501506,0.0002814,7]
[400645737,1767762644623,-2000.0,0.00028273,7]
[400645738,1767762644633,-2200.0,0.00028278,7]
[400645739,1767762644643,-422.33,0.000283,2]
[400645740,1767762644653,-3028.79354492,0.00028304,27]
[400645741,1767762644664,-504.03580479,0.00028328,2]
[400645742,1767762644674,-2445.01,0.000284,14]
[400645743,1767762644683,-500.0,0.00028452,7]
[400645745,1767762644692,-850.0,0.00028493,5]
[400645747,1767762644701,-1345.06654584,0.00028493,5]
[400645749,1767762644711,-350.0,0.00028493,5]
[400645751,1767762644720,-350.0,0.00028493,5]
[400645753,1767762644729,-146947.85475378,0.000285,7]
[400645755,1767762644738,-151.0,0.000285,7]
[400645756,1767762644747,-151.0,0.000285,7]
[400645757,1767762644756,-151.0,0.000285,7]
[400645758,1767762644766,-151.0,0.000285,7]
[400645759,1767762644775,-151.0,0.000285,7]
[400645760,1767762644785,-151.0,0.000285,7]
[400645761,1767762644798,-151.0,0.000285,7]
[400645762,1767762644807,-151.0,0.000285,7]
[400645763,1767762644919,-151.0,0.000285,7]
[400645764,1767762644930,-183.522133,0.000285,7]
[400645765,1767762644939,-151.0,0.000285,7]
[400645766,1767762644948,-151.0,0.000285,7]
[400645767,1767762644957,-151.0,0.000285,7]
[400645768,1767762644967,-151.0,0.000285,7]
[400645769,1767762644976,-151.0,0.000285,7]
[400645770,1767762644985,-151.0,0.000285,7]
[400645771,1767762644995,-151.528573,0.000285,7]
[400645772,1767762645004,-151.0,0.000285,7]
[400645773,1767762645013,-151.0,0.000285,7]
[400645774,1767762645023,-151.0,0.000285,7]
[400645775,1767762645032,-258.12,0.000285,7]
[400645776,1767762645041,-243.07,0.000285,7]
[400645777,1767762645051,-151.0,0.000285,7]
[400645778,1767762645060,-151.0,0.000285,7]
[400645779,1767762645070,-151.0,0.000285,7]
[400645780,1767762645080,-151.0,0.000285,7]
[400645781,1767762645089,-206.889733,0.000285,7]
[400645782,1767762645098,-151.0,0.000285,7]
[400645783,1767762645107,-151.0,0.000285,7]
[400645784,1767762645116,-25963.54,0.000286,2]
[400645785,1767762645125,-574.12855637,0.00028629,2]
[400645786,1767762645135,-21899.11408481,0.00028629,2]
[400645787,1767762645144,-2773.56790519,0.00028629,2]
[400645788,1767762645153,-6780.5976698,0.00028634,2]
[400645789,1767762645162,-12524.7573905,0.00028634,2]
[400645790,1767762645172,-15924.41,0.000287,3]
[400645791,1767762645182,-26870.27186945,0.0002876,2]
[400645792,1767762645191,-28361.51006566,0.0002876,20]
[400645793,1767762645201,-4000.0,0.0002876,5]
[400645794,1767762645211,-19134.21875192,0.0002876,2]
[400645795,1767762645220,-1346.23,0.00028767,4]
[400645796,1767762645229,-215.630447,0.00028767,60]
[400645797,1767762645239,-6262.3786953,0.00028779,2]
[400645798,1767762645248,-172.38864068,0.000288,7]
[400645799,1767762645258,-500.0,0.00028937,7]
[400645800,1767762645267,-890.22929937,0.00029,2]
[400645801,1767762645276,-1019.0,0.00029,2]
[400645802,1767762645285,-950.0,0.00029041,5]
[400645803,1767762645296,-450.0,0.00029041,5]
[400645804,1767762645305,-450.0,0.00029041,5]
[400645805,1767762645315,-1512.9558439,0.00029091,2]
[400645806,1767762645324,-2794.6511223,0.00029091,2]
[400645807,1767762645334,-1908.17,0.000291,7]
[400645808,1767762645343,-2000.0,0.0002911,7]
[400645809,1767762645353,-595.37131296,0.00029177,2]
[400645810,1767762645363,-1397.3255611,0.00029269,2]
[400645811,1767762645372,-346.1,0.00029436,3]
[400645812,1767762645381,-1050.0,0.00029589,5]
[400645813,1767762645391,-550.0,0.00029589,5]
[400645814,1767762645401,-550.0,0.00029589,5]
[400645815,1767762645410,-2200.0,0.00029648,7]
[400645816,1767762645420,-5000.0,0.00029663,2]
[400645817,1767762645429,-280.28268334,0.00029713,7]
[400645818,1767762645439,-617.40005154,0.00029725,2]
[400645819,1767762645448,-8045.68317556,0.00029748,2]
[400645820,1767762645458,-3351.41237478,0.00029756,30]
[400645821,1767762645467,-2445.01,0.000298,14]
[400645822,1767762645477,-167.78,0.000299,7]
[400645823,1767762645487,-2000.0,0.00029948,7]
[400645824,1767762645497,-2497.9471221,0.00029986,2]
[400645825,1767762645506,-151.0,0.00029986,7]
[400645826,1767762645515,-151.0,0.00029986,2]
[400645828,1767762645524,-327.441468,0.00029986,7]
[400645829,1767762645534,-327.441468,0.00029986,7]
[400645830,1767762645543,-412.72451996,0.0003,10]
[400645831,1767762645552,-207.97855793,0.0003,30]
[400645832,1767762645561,-9242.35901551,0.0003,7]
[400645833,1767762645571,-17930.91843581,0.0003,2]
[400645834,1767762645580,-12215.17550631,0.0003,2]
[400645835,1767762645590,-779.93850633,0.0003,30]
[400645837,1767762645600,-1125.0,0.0003,5]
[400645838,1767762645609,-165.46,0.0003,5]
[400645839,1767762645618,-300.0,0.0003,60]
[400645840,1767762645628,-269.6751108,0.0003,2]
[400645841,1767762645637,-14009.63140241,0.0003,7]
[400645842,1767762645646,-1467.25,0.0003,2]
[400645843,1767762645656,-1000.0,0.0003,2]
[400645844,1767762645665,-1610.0,0.0003,30]
[400645845,1767762645675,-1610.0,0.0003,30]
[400645846,1767762645684,-258.12,0.0003,7]
[400645847,1767762645693,-243.07,0.0003,7]
[400645849,1767762645702,-1626.684503,0.0003,7]
[400645850,1767762645711,-1626.684503,0.0003,7]
[400645851,1767762645720,-1626.684503,0.0003,7]
[400645852,1767762645729,-151.0,0.0003,7]
[400645853,1767762645738,-1626.684503,0.0003,7]
[400645854,1767762645747,-151.0,0.0003,7]
[400645855,1767762645756,-151.0,0.0003,7]
[400645856,1767762645767,-194.927323,0.0003,7]
[400645857,1767762645776,-194.927323,0.0003,7]
[400645858,1767762645786,-194.927323,0.0003,7]
[400645859,1767762645799,-194.927323,0.0003,7]
[400645860,1767762645808,-166.0,0.0003,14]
[400645861,1767762645817,-184.0,0.0003,14]
[400645862,1767762645827,-390.92977,0.0003,7]
[400645863,1767762645838,-390.92977,0.0003,7]
[400645864,1767762645847,-390.92977,0.0003,7]
[400645865,1767762645856,-390.92977,0.0003,7]
[400645866,1767762645867,-151.0,0.0003,7]
[400645868,1767762645877,-209.486994,0.0003,7]
[400645869,1767762645886,-1019.0,0.0003,7]
[400645870,1767762645895,-440.287203,0.0003,7]
[400645871,1767762645905,-440.287203,0.0003,7]
[400645872,1767762645914,-440.287203,0.0003,7]
[400645873,1767762645923,-316.0,0.0003,14]
[400645874,1767762645932,-440.287203,0.0003,7]
[400645875,1767762645941,-1041.66666667,0.0003,30]
[400645876,1767762645950,-187.815389,0.00030075,7]
[400645877,1767762645959,-187.815389,0.00030075,7]
[400645878,1767762645969,-187.815389,0.00030075,7]
[400645879,1767762645978,-187.815389,0.00030075,7]
[400645880,1767762645987,-151.0,0.00030075,7]
[400645881,1767762645996,-151.0,0.00030075,7]
[400645882,1767762646006,-1016.281206,0.00030075,7]
[400645883,1767762646016,-1016.281206,0.00030075,7]
[400645884,1767762646026,-1016.281206,0.00030075,7]
[400645885,1767762646036,-1016.281206,0.00030075,7]
[400645886,1767762646045,-171.590841,0.00030075,7]
[400645887,1767762646054,-609.666208,0.00030075,7]
[400645888,1767762646063,-609.666208,0.00030075,7]
[400645889,1767762646072,-609.666208,0.00030075,7]
[400645890,1767762646081,-210.572265,0.00030075,7]
[400645891,1767762646091,-609.666208,0.00030075,7]
[400645892,1767762646100,-210.572265,0.00030075,7]
[400645893,1767762646109,-210.572265,0.00030075,7]
[400645894,1767762646118,-210.572265,0.00030075,7]
[400645895,1767762646127,-7329.14403194,0.00030075,2]
[400645896,1767762646136,-2875.33898822,0.000301,7]
[400645897,1767762646145,-151.0,0.00030136,7]
[400645898,1767762646154,-151.0,0.00030136,7]
[400645899,1767762646163,-151.0,0.00030136,7]
[400645900,1767762646172,-151.0,0.00030136,7]
[400645901,1767762646181,-205.742012,0.00030136,7]
[400645902,1767762646191,-205.742012,0.00030136,7]
[400645903,1767762646200,-151.0,0.00030136,7]
[400645904,1767762646210,-205.742012,0.00030136,7]
[400645905,1767762646219,-205.742012,0.00030136,7]
[400645906,1767762646228,-1664.343388,0.00030136,7]
[400645907,1767762646238,-1664.343388,0.00030136,7]
[400645908,1767762646247,-1664.343388,0.00030136,7]
[400645909,1767762646257,-186.329815,0.00030136,7]
[400645910,1767762646267,-186.329815,0.00030136,7]
[400645911,1767762646276,-186.329815,0.00030136,7]
[400645912,1767762646286,-186.329815,0.00030136,7]
[400645913,1767762646296,-215.570059,0.00030136,7]
[400645914,1767762646305,-206.665209,0.00030136,7]
[400645915,1767762646314,-215.570059,0.00030136,7]
[400645916,1767762646324,-206.665209,0.00030136,7]
[400645917,1767762646333,-215.570059,0.00030136,7]
[400645918,1767762646342,-206.665209,0.00030136,7]
[400645919,1767762646352,-215.570059,0.00030136,7]
[400645920,1767762646362,-206.665209,0.00030136,7]
[400645921,1767762646371,-1346.23,0.00030136,6]
[400645922,1767762646380,-1150.0,0.00030137,5]
[400645923,1767762646389,-500.0,0.00030137,15]
[400645924,1767762646399,-650.0,0.00030137,5]
[400645925,1767762646408,-650.0,0.00030137,5]
[400645926,1767762646418,-328.54602491,0.00030137,120]
[400645927,1767762646428,-25963.54,0.000302,2]
[400645928,1767762646437,-209.524359,0.000302,31]
[400645929,1767762646447,-209.524359,0.000302,31]
[400645930,1767762646456,-209.524359,0.000302,31]
[400645931,1767762646465,-209.524359,0.000302,31]
[400645932,1767762646474,-241.004676,0.000302,31]
[400645933,1767762646483,-241.004676,0.000302,31]
[400645934,1767762646492,-241.004676,0.000302,31]
[400645935,1767762646501,-241.004676,0.000302,31]
[400645936,1767762646510,-530.111159,0.000302,31]
[400645937,1767762646519,-530.111159,0.000302,31]
[400645938,1767762646528,-634.815792,0.000302,28]
[400645939,1767762646537,-530.111159,0.000302,31]
[400645940,1767762646546,-634.815792,0.000302,28]
[400645941,1767762646556,-530.111159,0.000302,31]
[400645942,1767762646565,-634.815792,0.000302,28]
[400645943,1767762646576,-634.815792,0.000302,28]
[400645944,1767762646585,-151.0,0.000302,31]
[400645945,1767762646594,-151.0,0.000302,31]
[400645946,1767762646603,-218.702509,0.000302,31]
[400645947,1767762646612,-218.702509,0.000302,31]
[400645948,1767762646621,-218.702509,0.000302,31]
[400645949,1767762646630,-218.702509,0.000302,31]
[400645950,1767762646639,-184.812283,0.000302,31]
[400645951,1767762646649,-184.812283,0.000302,31]
[400645952,1767762646658,-184.812283,0.000302,31]
[400645953,1767762646667,-184.812283,0.000302,31]
[400645954,1767762646676,-199.964076,0.000302,31]
[400645955,1767762646685,-199.964076,0.000302,31]
[400645956,1767762646694,-199.964076,0.000302,31]
[400645957,1767762646704,-199.964076,0.000302,31]
[400645958,1767762646713,-2200.0,0.00030236,7]
[400645959,1767762646724,-1000.0,0.00030239,30]
[400645960,1767762646733,-667.0,0.00030239,30]
[400645961,1767762646743,-253.60075553,0.00030273,2]
[400645962,1767762646752,-541.218774,0.00030328,2]
[400645963,1767762646761,-2200.0,0.00030356,7]
[400645964,1767762646771,-316.0,0.00030411,14]
[400645965,1767762646780,-1908.17,0.000305,7]
[400645966,1767762646792,-2200.0,0.00030607,7]
[400645967,1767762646801,-1299.19626571,0.00030685,5]
[400645968,1767762646811,-500.0,0.00030685,15]
[400645969,1767762646820,-316.0,0.00030685,14]
[400645970,1767762646831,-750.65512167,0.00030685,5]
[400645971,1767762646840,-750.0,0.00030685,5]
[400645972,1767762646849,-2200.0,0.00030695,7]
[400645973,1767762646858,-15924.41,0.000307,6]
[400645974,1767762646867,-379.39,0.0003074,2]
[400645975,1767762646876,-557.3673414,0.00030745,2]
[400645976,1767762646885,-500.0,0.00030749,7]
[400645977,1767762646894,-500.0,0.00030779,7]
[400645978,1767762646904,-2000.0,0.00030786,7]
[400645979,1767762646913,-402.32,0.00030958,30]
[400645980,1767762646922,-316.0,0.00030959,14]
[400645981,1767762646931,-2200.0,0.0003097,7]
[400645982,1767762646940,-1981.16465421,0.0003098,10]
[400645983,1767762646949,-500.0,0.00030984,7]
[400645984,1767762646959,-177.0,0.00030986,43]
[400645985,1767762646968,-163.98489072,0.00031,120]
[400645986,1767762646978,-164.04291735,0.00031,120]
[400645987,1767762646987,-206.91086702,0.00031,120]
[400645988,1767762646996,-194.89245098,0.00031,120]
[400645989,1767762647005,-190.2708929,0.00031,120]
[400645990,1767762647015,-191.51603111,0.00031,120]
[400645991,1767762647024,-174.41697135,0.00031,120]
[400645992,1767762647033,-176.11325056,0.00031,120]
[400645993,1767762647041,-1000.0,0.00031,2]
[400645994,1767762647051,-191.73798973,0.00031,120]
[400645995,1767762647060,-186.0317041,0.00031,120]
[400645996,1767762647071,-1019.0,0.00031,7]
[400645997,1767762647080,-346.1,0.0003104,4]
[400645998,1767762647089,-2200.0,0.00031177,7]
[400645999,1767762647098,-451.0,0.000312,2]
[400646000,1767762647108,-3682.25741929,0.00031208,32]
[400646001,1767762647117,-316.0,0.00031233,14]
[400646002,1767762647126,-500.0,0.00031272,7]
[400646003,1767762647135,-5000.0,0.00031288,2]
[400646004,1767762647144,-2445.01,0.000314,14]
[400646005,1767762647153,-402.32,0.00031506,31]
[400646006,1767762647162,-1346.23,0.00031506,8]
[400646007,1767762647172,-2000.0,0.00031623,7]
[400646008,1767762647181,-167.0,0.00031644,14]
[400646009,1767762647190,-316.0,0.00031644,14]
[400646010,1767762647200,-258.12,0.000317,7]
[400646011,1767762647209,-243.07,0.000317,7]
[400646012,1767762647219,-6312.35556935,0.00031798,2]
[400646013,1767762647228,-2200.0,0.00031896,7]
[400646014,1767762647237,-164.04291735,0.000319,120]
[400646015,1767762647247,-206.91086702,0.000319,120]
[400646016,1767762647255,-190.2708929,0.000319,120]
[400646017,1767762647265,-191.51603111,0.000319,120]
[400646018,1767762647274,-174.41697135,0.000319,120]
[400646019,1767762647284,-18908.25294421,0.000319,2]
[400646020,1767762647294,-191.73798973,0.000319,120]
[400646021,1767762647303,-186.0317041,0.000319,120]
[400646022,1767762647312,-500.0,0.00031922,7]
[400646023,1767762647322,-2800.0,0.00031982,7]
[400646024,1767762647331,-2145.0,0.00031986,2]
[400646025,1767762647340,-1365.0,0.00031986,2]
[400646026,1767762647449,-628.0,0.00031986,2]
[400646027,1767762647458,-714.0,0.00031986,2]
[400646028,1767762647467,-417.0,0.00031986,2]
[400646029,1767762647476,-195.223,0.00031986,2]
[400646030,1767762647486,-417.0,0.00031986,2]
[400646031,1767762647496,-200.66450954,0.00032,2]
[400646032,1767762647505,-1000.0,0.00032,2]
[400646033,1767762647514,-25963.54,0.00032,2]
[400646034,1767762647523,-1019.0,0.00032,7]
[400646035,1767762647532,-402.32,0.00032054,32]
[400646036,1767762647542,-500.0,0.0003216,2]
[400646037,1767762647551,-1908.17,0.000322,7]
[400646038,1767762647559,-8045.68317556,0.00032237,2]
[400646039,1767762647568,-365.26,0.000323,2]
[400646040,1767762647577,-578.4017432,0.00032328,2]
[400646041,1767762647587,-188.67967802,0.00032334,9]
[400646042,1767762647596,-784.05803751,0.00032415,2]
[400646043,1767762647605,-3136.23215004,0.00032415,2]
[400646044,1767762647615,-7049.46581526,0.00032415,2]
[400646045,1767762647624,-2000.0,0.00032461,7]
[400646046,1767762647634,-402.32,0.00032602,33]
[400646047,1767762647642,-346.1,0.00032644,5]
[400646048,1767762647651,-4020.9278915,0.0003266,33]
[400646049,1767762647661,-15924.41,0.000327,8]
[400646050,1767762647670,-1346.23,0.00032876,120]
[400646051,1767762647679,-35023.06,0.00032877,10]
[400646052,1767762647689,-29185.88,0.00032877,10]
[400646053,1767762647698,-24321.57,0.00032877,10]
[400646054,1767762647707,-177.89274798,0.00032886,120]
[400646055,1767762647716,-191.73798973,0.000329,120]
[400646056,1767762647725,-5000.0,0.00032913,2]
[400646057,1767762647734,-858.0,0.00032937,30]
[400646058,1767762647743,-848.5,0.00032937,30]
[400646059,1767762647752,-652.0,0.00032937,30]
[400646060,1767762647761,-1041.66666667,0.00033,10]
[400646061,1767762647771,-157.23731357,0.00033032,10]
[400646062,1767762647780,-402.32,0.0003315,34]
[400646063,1767762647791,-422.33,0.000332,2]
[400646064,1767762647800,-2445.01,0.000332,30]
[400646065,1767762647809,-316.0,0.00033226,30]
[400646066,1767762647818,-330.0,0.00033226,30]
[400646067,1767762647828,-2000.0,0.00033299,7]
[400646068,1767762647838,-258.12,0.000333,7]
[400646069,1767762647847,-243.07,0.000333,7]
[400646070,1767762647856,-7329.14403194,0.00033645,2]
[400646071,1767762647866,-38000.0,0.00033693,10]
[400646072,1767762647875,-402.32,0.00033698,35]
[400646073,1767762647884,-210.0,0.00033699,5]
[400646074,1767762647893,-365.26,0.000337,2]
[400646075,1767762647902,-38000.0,0.00033702,10]
[400646076,1767762647911,-191.73798973,0.000339,120]
[400646077,1767762647920,-25963.54,0.000339,14]
[400646078,1767762647928,-1041.66666667,0.00034,10]
[400646079,1767762647937,-1908.17,0.00034,7]
[400646080,1767762647946,-1041.66666667,0.00034,10]
[400646081,1767762647956,-157.23731356,0.00034055,10]
[400646082,1767762647965,-4367.06831046,0.00034113,35]
[400646083,1767762647975,-977.00011086,0.00034121,2]
[400646084,1767762647984,-3904.09244299,0.00034121,2]
[400646085,1767762647994,-2000.0,0.00034136,7]
[400646086,1767762648002,-160.0,0.00034159,3]
[400646087,1767762648011,-402.32,0.00034246,36]
[400646088,1767762648020,-1346.23,0.00034246,120]
[400646089,1767762648029,-346.1,0.00034248,6]
[400646090,1767762648039,-615.58471241,0.00034328,120]
[400646091,1767762648048,-270.0,0.00034521,5]
[400646092,1767762648057,-297.211329,0.00034538,31]
[400646093,1767762648066,-167.701236,0.00034538,31]
[400646094,1767762648075,-151.0,0.00034538,31]